[Event "FIDE WSTC Open 65 2025"]
[Site "Prague"]
[Date "2025.02.21"]
[Round "5.38"]
[White "Volkmer, Andreas"]
[Black "Sadeghi, Hassan Roger"]
[Result "1/2-1/2"]
[Annotator "ChessBase"]
[ECO "C50"]
[WhiteElo "2173"]
[BlackElo "2029"]
[PlyCount "86"]
[EventDate "2025.02.17"]
[EventType "team-tourn"]
[EventCountry "CZE"]
[SourceTitle "playchess.com"]
[Source "ChessBase"]
[SourceQuality "1"]
[TimeControl "40/5400+30:1800+30"]

1. e4 {[%emt 0:00:28]} e5 {[%emt 0:00:17]} 2. Nf3 {[%emt 0:01:30]} Nc6 {[%emt 0:00:25]} 3. Bc4 {[%emt 0:00:14]} Be7 {[%emt 0:01:16]} 4. d4 {[%emt 0:08:21]} d6 {[%emt 0:00:11]} 5. h3 {[%emt 0:01:55]} Nf6 {[%emt 0:00:27]} 6. Nc3 {[%emt 0:00:07]} O-O {[%emt 0:01:41]} 7. Bb3 {[%emt 0:01:51]} exd4 {[%emt 0:02:52]} 8. Nxd4 {[%emt 0:01:54]} Na5 {[%emt 0:00:39]} 9. Nf3 {[%emt 0:03:00]} Re8 {[%emt 0:09:16]} 10. O-O {[%emt 0:01:27]} Nxb3 {[%emt 0:03:49]} 11. axb3 {[%emt 0:00:04]} Bd7 {[%emt 0:00:20]} 12. Re1 {[%emt 0:07:10]} Bf8 {[%emt 0:10:09]} 13. Qd4 {[%emt 0:07:24]} a6 {[%emt 0:03:01]} 14. Bg5 {[%emt 0:01:00]} Be7 {[%emt 0:00:10]} 15. Rad1 {[%emt 0:02:34]} h6 {[%emt 0:00:57]} 16. Bc1 {[%emt 0:06:56]} Bf8 {[%emt 0:07:56]} 17. Qd3 {[%emt 0:08:33]} Qc8 {[%emt 0:05:26]} 18. Nd4 {[%emt 0:11:50]} g6 {[%emt 0:11:51]} 19. f4 {[%emt 0:09:10]} Bg7 {[%emt 0:07:44]} 20. e5 {[%emt 0:07:33]} dxe5 {[%emt 0:01:47]} 21. fxe5 {[%emt 0:00:01]} Nh7 {[%emt 0:00:10]} 22. Bf4 {[%emt 0:03:03]} c5 {[%emt 0:06:33]} 23. Nf3 {[%emt 0:00:03]} Bf5 {[%emt 0:00:35]} 24. Qe2 {[%emt 0:00:41]} g5 {[%emt 0:05:00]} 25. Bg3 {[%emt 0:00:15]} g4 {[%emt 0:00:22]} 26. hxg4 {[%emt 0:00:13]} Bxg4 {[%emt 0:00:09]} 27. Nd5 {[%emt 0:03:13]} Qc6 {[%emt 0:02:34]} 28. c4 {[%emt 0:00:30]} f6 {[%emt 0:03:40]} 29. Qe4 {[%emt 0:01:43]} Bxf3 {[%emt 0:00:13]} 30. Qxf3 {[%emt 0:00:04]} fxe5 {[%emt 0:00:16]} 31. Qf5 {[%emt 0:04:15]} Qc8 {[%emt 0:01:41]} 32. Qh5 {[%emt 0:01:23]} Ng5 {[%emt 0:03:43]} 33. Nb6 {[%emt 0:02:30]} Qf5 {[%emt 0:00:09]} 34. Nxa8 {[%emt 0:00:22]} Rxa8 {[%emt 0:00:04]} 35. Rd5 {[%emt 0:01:13]} Rf8 {[%emt 0:00:11]} 36. Qe2 {[%emt 0:00:06]} Nf7 {[%emt 0:00:58]} 37. Qe3 {[%emt 0:01:28]} b6 {[%emt 0:00:19]} 38. Rf1 {[%emt 0:00:29]} Qg6 {[%emt 0:00:52]} 39. Bxe5 {[%emt 0:02:52]} Nxe5 {[%emt 0:01:36]} 40. Rxf8+ {[%emt 0:00:13]} Kxf8 {[%emt 0:00:32]} 41. Rxe5 {[%emt 0:30:13]} Bxe5 {[%emt 0:30:08]} 42. Qxe5 {[%emt 0:00:01]} Qg5 {[%emt 0:01:33]} 43. Qb8+ {[%emt 0:03:00]} Kf7 {[%emt 0:00:54]} 1/2-1/2

[Event "FIDE WSTC Open 65 2025"]
[Site "Prague"]
[Date "2025.02.21"]
[Round "5.39"]
[White "Zuelle, Bruno"]
[Black "Schulz, Michael"]
[Result "0-1"]
[Annotator "ChessBase"]
[ECO "A29"]
[WhiteElo "2038"]
[BlackElo "2115"]
[PlyCount "86"]
[EventDate "2025.02.17"]
[EventType "team-tourn"]
[EventCountry "CZE"]
[SourceTitle "playchess.com"]
[Source "ChessBase"]
[SourceQuality "1"]
[TimeControl "40/5400+30:1800+30"]

1. c4 {[%emt 0:00:05]} e5 {[%emt 0:00:08]} 2. Nc3 {[%emt 0:00:08]} Nf6 {[%emt 0:00:08]} 3. g3 {[%emt 0:00:15]} d5 {[%emt 0:00:06]} 4. cxd5 {[%emt 0:00:12]} Nxd5 {[%emt 0:00:04]} 5. Bg2 {[%emt 0:00:15]} Nb6 {[%emt 0:00:05]} 6. Nf3 {[%emt 0:00:17]} Nc6 {[%emt 0:00:04]} 7. O-O {[%emt 0:00:15]} Be7 {[%emt 0:00:04]} 8. d3 {[%emt 0:00:23]} O-O {[%emt 0:00:08]} 9. Be3 {[%emt 0:00:20]} Re8 {[%emt 0:01:34]} 10. a3 {[%emt 0:01:46]} Bf8 {[%emt 0:01:16]} 11. Rc1 {[%emt 0:01:35]} a5 {[%emt 0:01:35]} 12. Na4 {[%emt 0:01:53]} Nd4 {[%emt 0:03:38]} 13. Nxb6 {[%emt 0:01:41]} cxb6 {[%emt 0:00:05]} 14. Nxd4 {[%emt 0:08:00]} exd4 {[%emt 0:01:18]} 15. Bf4 {[%emt 0:00:49]} Bc5 {[%emt 0:02:23]} 16. Re1 {[%emt 0:02:16]} a4 {[%emt 0:12:25]} 17. Rc4 {[%emt 0:05:08]} Qd7 {[%emt 0:09:59]} 18. e4 {[%emt 0:10:12]} Qb5 {[%emt 0:02:39]} 19. Rc2 {[%emt 0:09:01]} Be6 {[%emt 0:01:54]} 20. Rd2 {[%emt 0:00:57]} Qd7 {[%emt 0:01:14]} 21. e5 {[%emt 0:05:37]} h6 {[%emt 0:01:52]} 22. h4 {[%emt 0:01:07]} Be7 {[%emt 0:03:33]} 23. h5 {[%emt 0:01:54]} b5 {[%emt 0:04:42]} 24. Bf3 {[%emt 0:03:39]} b4 {[%emt 0:01:39]} 25. Qa1 {[%emt 0:00:53]} Rac8 {[%emt 0:01:55]} 26. Rc1 {[%emt 0:01:47]} Rxc1+ {[%emt 0:01:12]} 27. Qxc1 {[%emt 0:00:10]} Rc8 {[%emt 0:00:05]} 28. Qa1 {[%emt 0:01:36]} b5 {[%emt 0:00:51]} 29. axb4 {[%emt 0:01:40]} Bxb4 {[%emt 0:00:15]} 30. Rd1 {[%emt 0:00:34]} Bd5 {[%emt 0:05:50]} 31. Bxd5 {[%emt 0:03:32]} Qxd5 {[%emt 0:00:06]} 32. Rc1 {[%emt 0:00:47]} Rc5 {[%emt 0:05:57]} 33. Rxc5 {[%emt 0:00:49]} Qxc5 {[%emt 0:00:14]} 34. Qd1 {[%emt 0:02:05]} Qc6 {[%emt 0:00:49]} 35. Qg4 {[%emt 0:03:20]} a3 {[%emt 0:05:47]} 36. bxa3 {[%emt 0:00:42]} Bxa3 {[%emt 0:00:17]} 37. Bd2 {[%emt 0:02:38]} Bc5 {[%emt 0:02:27]} 38. f4 {[%emt 0:01:19]} Qe6 {[%emt 0:19:22]} 39. Qf3 {[%emt 0:10:53]} Qa2 {[%emt 0:01:27]} 40. Qc6 {[%emt 0:05:32]} Qxd2 {[%emt 0:00:19]} 41. Qxc5 {[%emt 0:31:06]} Qxd3 {[%emt 0:31:57]} 42. Qc8+ {[%emt 0:01:19]} Kh7 {[%emt 0:00:07]} 43. Qg4 {[%emt 0:00:53]} b4 {[%emt 0:02:00]} 0-1

[Event "FIDE WSTC Open 65 2025"]
[Site "Prague"]
[Date "2025.02.21"]
[Round "5.40"]
[White "Raitza, Olaf"]
[Black "Erismann, Peter"]
[Result "1/2-1/2"]
[Annotator "NA"]
[ECO "B45"]
[WhiteElo "2037"]
[BlackElo "2013"]
[PlyCount "72"]
[EventDate "2025.02.17"]
[EventType "team-tourn"]
[EventCountry "CZE"]
[SourceTitle "playchess.com"]
[Source "ChessBase"]
[SourceQuality "1"]
[TimeControl "40/5400+30:1800+30"]

1. e4 {[%emt 0:00:03]} c5 {[%emt 0:00:07]} 2. Nf3 {[%emt 0:00:08]} e6 {[%emt 0:00:06]} 3. d4 {[%emt 0:00:11]} cxd4 {[%emt 0:00:06]} 4. Nxd4 {[%emt 0:00:10]} Nf6 {[%emt 0:00:06]} 5. Nc3 {[%emt 0:00:13]} Nc6 {[%emt 0:00:05]} 6. Ndb5 {[%emt 0:00:29]} Bb4 {[%emt 0:00:09]} 7. a3 {[%emt 0:00:17]} Bxc3+ {[%emt 0:00:05]} 8. Nxc3 {[%emt 0:00:07]} d5 {[%emt 0:00:12]} 9. exd5 {[%emt 0:00:26]} exd5 {[%emt 0:00:02]} 10. Bd3 {[%emt 0:01:23]} O-O {[%emt 0:00:09]} 11. O-O {[%emt 0:00:32]} d4 {[%emt 0:00:01]} 12. Ne4 {[%emt 0:01:00]} Bf5 {[%emt 0:00:09]} 13. Bg5 {[%emt 0:05:58]} Bxe4 {[%emt 0:00:24]} 14. Bxe4 {[%emt 0:09:00]} h6 {[%emt 0:00:08]} 15. Bxf6 {[%emt 0:07:58]} Qxf6 {[%emt 0:00:48]} 16. Re1 {[%emt 0:10:04]} Rfe8 {[%emt 0:08:33]} 17. Qd2 {[%emt 0:07:34]} Rac8 {[%emt 0:15:28]} 18. Rad1 {[%emt 0:00:39]} Qg5 {[%emt 0:15:06]} 19. Qxg5 {[%emt 0:07:58]} hxg5 {[%emt 0:00:17]} 20. Kf1 {[%emt 0:01:32]} Kf8 {[%emt 0:02:43]} 21. Bxc6 {[%emt 0:06:43]} Rxc6 {[%emt 0:00:53]} 22. Rxe8+ {[%emt 0:00:09]} Kxe8 {[%emt 0:00:06]} 23. Rd2 {[%emt 0:00:04]} Ke7 {[%emt 0:13:41]} 24. Ke2 {[%emt 0:00:14]} Ke6 {[%emt 0:00:14]} 25. Kd3 {[%emt 0:06:20]} Kd5 {[%emt 0:02:19]} 26. Re2 {[%emt 0:00:54]} Re6 {[%emt 0:00:34]} 27. Rxe6 {[%emt 0:03:04]} fxe6 {[%emt 0:00:08]} 28. f3 {[%emt 0:03:12]} b5 {[%emt 0:06:14]} 29. b4 {[%emt 0:03:57]} Ke5 {[%emt 0:01:46]} 30. g3 {[%emt 0:06:15]} Kd5 {[%emt 0:00:38]} 31. c3 {[%emt 0:01:57]} dxc3 {[%emt 0:00:52]} 32. Kxc3 {[%emt 0:00:00]} Ke5 {[%emt 0:00:37]} 33. h3 {[%emt 0:00:40]} Kd5 {[%emt 0:00:45]} 34. Kd3 {[%emt 0:00:22]} Ke5 {[%emt 0:00:08]} 35. Ke3 {[%emt 0:01:18]} Kd5 {[%emt 0:00:42]} 36. Kd3 {[%emt 0:02:12]} Ke5 {[%emt 0:00:29]} 1/2-1/2

[Event "FIDE WSTC Open 65 2025"]
[Site "Prague"]
[Date "2025.02.21"]
[Round "5.41"]
[White "Jansa, Vlastimil"]
[Black "Kozak, Milos"]
[Result "1/2-1/2"]
[Annotator "RC"]
[ECO "B15"]
[WhiteElo "2267"]
[BlackElo "2047"]
[PlyCount "36"]
[EventDate "2025.02.17"]
[EventType "team-tourn"]
[EventCountry "CZE"]
[SourceTitle "playchess.com"]
[Source "ChessBase"]
[SourceQuality "1"]
[TimeControl "40/5400+30:1800+30"]

1. e4 {[%emt 0:00:06]} c6 {[%emt 0:00:12]} 2. d4 {[%emt 0:00:22]} d5 {[%emt 0:00:15]} 3. Nd2 {[%emt 0:00:10]} dxe4 {[%emt 0:00:14]} 4. Nxe4 {[%emt 0:00:04]} Nf6 {[%emt 0:00:18]} 5. Nxf6+ {[%emt 0:00:15]} exf6 {[%emt 0:00:06]} 6. c3 {[%emt 0:00:51]} Bd6 {[%emt 0:00:09]} 7. Bd3 {[%emt 0:00:13]} O-O {[%emt 0:00:24]} 8. Qc2 {[%emt 0:00:13]} Re8+ {[%emt 0:00:10]} 9. Ne2 {[%emt 0:00:08]} h5 {[%emt 0:00:07]} 10. Be3 {[%emt 0:01:04]} Nd7 {[%emt 0:00:17]} 11. O-O-O {[%emt 0:01:38]} Nf8 {[%emt 0:00:06]} 12. c4 {[%emt 0:05:46]} Be6 {[%emt 0:00:34]} 13. Kb1 {[%emt 0:13:57]} Rc8 {[%emt 0:01:02]} 14. h3 {[%emt 0:04:21]} b5 {[%emt 0:04:50]} 15. c5 {[%emt 0:04:38]} Bb8 {[%emt 0:09:46]} 16. g4 {[%emt 0:09:03]} h4 {[%emt 0:00:37]} 17. Nf4 {[%emt 0:06:47]} Bxf4 {[%emt 0:01:28]} 18. Bxf4 {[%emt 0:00:06]} Bd5 {[%emt 0:04:06]} 1/2-1/2

[Event "FIDE WSTC Open 65 2025"]
[Site "Prague"]
[Date "2025.02.21"]
[Round "5.42"]
[White "Chaloupka, Vladimir"]
[Black "Polasek, Jaroslav"]
[Result "1/2-1/2"]
[Annotator "RC"]
[ECO "A97"]
[WhiteElo "2064"]
[BlackElo "2344"]
[PlyCount "31"]
[EventDate "2025.02.17"]
[EventType "team-tourn"]
[EventCountry "CZE"]
[SourceTitle "playchess.com"]
[Source "ChessBase"]
[SourceQuality "1"]
[TimeControl "40/5400+30:1800+30"]

1. d4 {[%emt 0:00:07]} e6 {[%emt 0:00:16]} 2. c4 {[%emt 0:01:19]} f5 3. g3 {[%emt 0:00:00]} Nf6 {[%emt 0:01:08]} 4. Bg2 {[%emt 0:00:00]} Be7 {[%emt 0:01:02]} 5. Nf3 {[%emt 0:00:18]} O-O {[%emt 0:00:07]} 6. O-O {[%emt 0:00:11]} d6 {[%emt 0:00:05]} 7. Nc3 {[%emt 0:00:41]} Qe8 {[%emt 0:00:04]} 8. Re1 {[%emt 0:01:01]} Nc6 {[%emt 0:10:54]} 9. e4 {[%emt 0:04:26]} fxe4 {[%emt 0:00:59]} 10. Nxe4 {[%emt 0:00:00]} Nxe4 {[%emt 0:03:08]} 11. Rxe4 {[%emt 0:00:13]} Qg6 {[%emt 0:00:08]} 12. Qe2 {[%emt 0:06:30]} Bf6 {[%emt 0:03:56]} 13. d5 {[%emt 0:17:24]} exd5 {[%emt 0:05:20]} 14. cxd5 {[%emt 0:03:12]} Ne5 {[%emt 0:16:46]} 15. Nxe5 {[%emt 0:04:35]} Bxe5 {[%emt 0:00:09]} 16. Be3 {[%emt 0:05:44]} 1/2-1/2

[Event "FIDE WSTC Open 65 2025"]
[Site "Prague"]
[Date "2025.02.21"]
[Round "5.43"]
[White "Spacek, Petr"]
[Black "Benes, Petr"]
[Result "1/2-1/2"]
[Annotator "RC"]
[ECO "A56"]
[WhiteElo "2273"]
[BlackElo "2069"]
[PlyCount "82"]
[EventDate "2025.02.17"]
[EventType "team-tourn"]
[EventCountry "CZE"]
[SourceTitle "playchess.com"]
[Source "ChessBase"]
[SourceQuality "1"]
[TimeControl "40/5400+30:1800+30"]

1. d4 {[%emt 0:00:41]} Nf6 {[%emt 0:00:38]} 2. c4 {[%emt 0:00:38]} c5 {[%emt 0:00:50]} 3. d5 {[%emt 0:00:45]} e5 {[%emt 0:00:19]} 4. Nc3 {[%emt 0:00:28]} d6 {[%emt 0:00:08]} 5. e4 {[%emt 0:00:48]} Be7 {[%emt 0:00:37]} 6. h3 {[%emt 0:01:40]} a6 {[%emt 0:03:28]} 7. Be3 {[%emt 0:03:59]} Nbd7 {[%emt 0:00:32]} 8. a3 {[%emt 0:01:07]} h6 {[%emt 0:08:31]} 9. Bd3 {[%emt 0:07:16]} Nh7 {[%emt 0:02:50]} 10. Nf3 {[%emt 0:10:00]} Ng5 {[%emt 0:02:42]} 11. Nd2 {[%emt 0:00:38]} Nh7 {[%emt 0:01:06]} 12. Nf3 {[%emt 0:15:01]} Ng5 {[%emt 0:02:56]} 13. Nh2 {[%emt 0:00:42]} Nh7 {[%emt 0:03:35]} 14. Nf1 {[%emt 0:01:48]} Bg5 {[%emt 0:03:43]} 15. Qe2 {[%emt 0:01:21]} Nhf8 {[%emt 0:06:38]} 16. g3 {[%emt 0:02:55]} Bxe3 {[%emt 0:05:27]} 17. Nxe3 {[%emt 0:00:26]} Ng6 {[%emt 0:01:17]} 18. O-O-O {[%emt 0:05:59]} Ne7 {[%emt 0:03:35]} 19. h4 {[%emt 0:01:36]} Rb8 {[%emt 0:02:15]} 20. Rdf1 {[%emt 0:03:37]} h5 {[%emt 0:07:10]} 21. f3 {[%emt 0:02:36]} Kf8 {[%emt 0:03:00]} 22. Rh2 {[%emt 0:00:57]} Kg8 {[%emt 0:01:34]} 23. f4 {[%emt 0:02:58]} Ng6 {[%emt 0:05:54]} 24. f5 {[%emt 0:02:23]} Ngf8 {[%emt 0:00:25]} 25. g4 {[%emt 0:04:50]} hxg4 {[%emt 0:03:40]} 26. Nxg4 {[%emt 0:00:27]} Nf6 {[%emt 0:00:56]} 27. Rg1 {[%emt 0:07:16]} Nxg4 {[%emt 0:03:58]} 28. Qxg4 {[%emt 0:00:20]} Rh7 {[%emt 0:00:06]} 29. Rhg2 {[%emt 0:04:07]} Nd7 {[%emt 0:07:37]} 30. Be2 {[%emt 0:01:55]} Qf6 {[%emt 0:04:16]} 31. Kb1 {[%emt 0:00:14]} Qh6 {[%emt 0:02:39]} 32. Qg5 {[%emt 0:02:10]} Qxg5 {[%emt 0:01:09]} 33. hxg5 {[%emt 0:00:03]} Kf8 {[%emt 0:01:16]} 34. Bd1 {[%emt 0:04:27]} b5 {[%emt 0:01:30]} 35. cxb5 {[%emt 0:00:19]} axb5 {[%emt 0:00:02]} 36. Be2 {[%emt 0:00:44]} c4 {[%emt 0:01:26]} 37. g6 {[%emt 0:01:14]} fxg6 {[%emt 0:00:52]} 38. fxg6 {[%emt 0:00:02]} Rh4 {[%emt 0:00:11]} 39. Rg4 {[%emt 0:00:55]} Rh6 {[%emt 0:01:14]} 40. R4g3 {[%emt 0:02:06]} Nf6 {[%emt 0:07:38]} 41. Bf3 {[%emt 0:03:20]} Bd7 {[%emt 0:00:23]} 1/2-1/2

[Event "FIDE WSTC Open 65 2025"]
[Site "Prague"]
[Date "2025.02.21"]
[Round "5.44"]
[White "Chaloupka, Frantisek"]
[Black "Mozny, Milos"]
[Result "1/2-1/2"]
[Annotator "RC"]
[ECO "A36"]
[WhiteElo "1961"]
[BlackElo "2232"]
[PlyCount "40"]
[EventDate "2025.02.17"]
[EventType "team-tourn"]
[EventCountry "CZE"]
[SourceTitle "playchess.com"]
[Source "ChessBase"]
[SourceQuality "1"]
[TimeControl "40/5400+30:1800+30"]

1. e4 {[%emt 0:00:09]} c5 {[%emt 0:00:13]} 2. c4 {[%emt 0:00:10]} Nc6 {[%emt 0:00:13]} 3. Nc3 {[%emt 0:00:22]} d6 {[%emt 0:01:08]} 4. g3 {[%emt 0:01:52]} g6 {[%emt 0:00:29]} 5. Bg2 {[%emt 0:00:39]} Bg7 {[%emt 0:00:35]} 6. Nge2 {[%emt 0:01:46]} e5 {[%emt 0:00:26]} 7. d3 {[%emt 0:00:37]} Nge7 {[%emt 0:00:20]} 8. O-O {[%emt 0:02:36]} O-O {[%emt 0:04:23]} 9. Be3 {[%emt 0:01:18]} Be6 {[%emt 0:04:59]} 10. b3 {[%emt 0:01:40]} Qd7 {[%emt 0:00:45]} 11. Qd2 {[%emt 0:00:28]} Bh3 {[%emt 0:01:10]} 12. Bh6 {[%emt 0:00:39]} Bxg2 {[%emt 0:00:31]} 13. Kxg2 {[%emt 0:00:15]} Nd4 {[%emt 0:00:53]} 14. Bxg7 {[%emt 0:02:42]} Kxg7 {[%emt 0:02:15]} 15. Nd5 {[%emt 0:00:39]} Nxd5 {[%emt 0:01:44]} 16. Nxd4 {[%emt 0:01:19]} cxd4 {[%emt 0:00:13]} 17. cxd5 {[%emt 0:00:13]} Rac8 {[%emt 0:00:59]} 18. Rac1 {[%emt 0:00:17]} b6 {[%emt 0:00:18]} 19. Rxc8 {[%emt 0:00:39]} Rxc8 {[%emt 0:00:10]} 20. Rc1 {[%emt 0:00:13]} Rxc1 {[%emt 0:01:20]} 1/2-1/2

[Event "FIDE WSTC Open 65 2025"]
[Site "Prague"]
[Date "2025.02.21"]
[Round "5.45"]
[White "Kyas, Juergen"]
[Black "Mojzis, Jaroslav"]
[Result "1/2-1/2"]
[Annotator "ChessBase"]
[ECO "C54"]
[WhiteElo "2173"]
[BlackElo "2089"]
[PlyCount "22"]
[EventDate "2025.02.17"]
[EventType "team-tourn"]
[EventCountry "CZE"]
[SourceTitle "playchess.com"]
[Source "ChessBase"]
[SourceQuality "1"]
[TimeControl "40/5400+30:1800+30"]

1. e4 {[%emt 0:00:02]} e5 {[%emt 0:03:36]} 2. Bc4 {[%emt 0:00:13]} Nf6 {[%emt 0:00:11]} 3. d3 {[%emt 0:00:02]} Bc5 {[%emt 0:00:21]} 4. Nf3 {[%emt 0:00:03]} d6 {[%emt 0:00:24]} 5. O-O {[%emt 0:00:24]} O-O {[%emt 0:00:19]} 6. Nbd2 {[%emt 0:00:44]} Nc6 {[%emt 0:07:26]} 7. c3 {[%emt 0:01:07]} a6 {[%emt 0:01:44]} 8. Bb3 {[%emt 0:00:23]} Re8 {[%emt 0:00:38]} 9. h3 {[%emt 0:02:38]} Be6 {[%emt 0:00:54]} 10. Re1 {[%emt 0:00:22]} h6 {[%emt 0:06:23]} 11. Nc4 {[%emt 0:10:37]} Ba7 {[%emt 0:13:08]} 1/2-1/2

[Event "FIDE WSTC Open 65 2025"]
[Site "Prague"]
[Date "2025.02.21"]
[Round "5.46"]
[White "Svanda, Pavel"]
[Black "Baum, Bernd"]
[Result "0-1"]
[Annotator "RC"]
[ECO "C03"]
[WhiteElo "2080"]
[BlackElo "2219"]
[PlyCount "128"]
[EventDate "2025.02.17"]
[EventType "team-tourn"]
[EventCountry "CZE"]
[SourceTitle "playchess.com"]
[Source "ChessBase"]
[SourceQuality "1"]
[TimeControl "40/5400+30:1800+30"]

1. e4 {[%emt 0:03:23]} e6 {[%emt 0:00:04]} 2. d4 {[%emt 0:00:18]} d5 {[%emt 0:00:03]} 3. Nd2 {[%emt 0:00:06]} Be7 {[%emt 0:00:04]} 4. Bd3 {[%emt 0:00:18]} c5 {[%emt 0:00:14]} 5. c3 {[%emt 0:00:05]} cxd4 {[%emt 0:03:46]} 6. cxd4 {[%emt 0:00:13]} Nc6 {[%emt 0:00:31]} 7. Ne2 {[%emt 0:03:05]} Qb6 {[%emt 0:01:52]} 8. Nf3 {[%emt 0:07:20]} dxe4 {[%emt 0:02:43]} 9. Bxe4 {[%emt 0:00:06]} Nf6 {[%emt 0:00:09]} 10. Bd3 {[%emt 0:04:15]} O-O {[%emt 0:01:01]} 11. O-O {[%emt 0:01:08]} Rd8 {[%emt 0:04:16]} 12. a3 {[%emt 0:04:26]} Bd7 {[%emt 0:01:29]} 13. b4 {[%emt 0:04:26]} Rac8 {[%emt 0:04:26]} 14. Bb2 {[%emt 0:09:10]} Nd5 {[%emt 0:03:50]} 15. Qb3 {[%emt 0:11:56]} Bf6 {[%emt 0:01:52]} 16. Rfd1 {[%emt 0:05:54]} Nce7 {[%emt 0:01:11]} 17. Ng3 {[%emt 0:01:59]} Bb5 {[%emt 0:03:11]} 18. Bb1 {[%emt 0:00:41]} Ng6 {[%emt 0:08:21]} 19. Ne4 {[%emt 0:04:41]} Be7 {[%emt 0:06:10]} 20. Ne5 {[%emt 0:02:18]} Ndf4 {[%emt 0:03:29]} 21. Nxg6 {[%emt 0:01:56]} hxg6 {[%emt 0:00:34]} 22. Nc5 {[%emt 0:01:51]} Bf6 {[%emt 0:05:46]} 23. Qe3 {[%emt 0:03:35]} Ne2+ {[%emt 0:06:02]} 24. Kh1 {[%emt 0:00:07]} Nxd4 {[%emt 0:00:22]} 25. Be4 {[%emt 0:04:18]} Nf5 {[%emt 0:04:32]} 26. Qb3 {[%emt 0:00:15]} Bxb2 {[%emt 0:05:49]} 27. Qxb2 {[%emt 0:00:06]} Bc6 {[%emt 0:01:07]} 28. Bxf5 {[%emt 0:03:04]} gxf5 {[%emt 0:00:32]} 29. Qe2 {[%emt 0:01:04]} Bd5 {[%emt 0:02:35]} 30. f3 {[%emt 0:01:28]} Qc7 {[%emt 0:04:33]} 31. Rac1 {[%emt 0:00:44]} Qe7 {[%emt 0:02:58]} 32. Qe3 {[%emt 0:01:46]} Rc7 {[%emt 0:01:11]} 33. h3 {[%emt 0:00:35]} Rdc8 {[%emt 0:01:01]} 34. Nd3 {[%emt 0:00:10]} a6 {[%emt 0:05:34]} 35. Rxc7 {[%emt 0:00:13]} Rxc7 {[%emt 0:00:33]} 36. Rc1 {[%emt 0:00:08]} Qd6 {[%emt 0:04:29]} 37. Rc5 {[%emt 0:01:11]} Rd7 {[%emt 0:05:12]} 38. Rc8+ {[%emt 0:08:49]} Rd8 {[%emt 0:00:12]} 39. Rxd8+ {[%emt 0:00:30]} Qxd8 {[%emt 0:00:01]} 40. Nf4 {[%emt 0:08:29]} Qd6 {[%emt 0:01:28]} 41. Qd4 {[%emt 0:30:31]} Qc6 {[%emt 0:10:09]} 42. Kh2 {[%emt 0:00:00]} Qc7 {[%emt 0:02:50]} 43. h4 {[%emt 0:00:00]} Bc6 {[%emt 0:01:30]} 44. Qe3 {[%emt 0:00:00]} e5 {[%emt 0:01:36]} 45. Ne2 {[%emt 0:00:00]} f4 {[%emt 0:06:30]} 46. Qd2 {[%emt 0:00:00]} Qe7 {[%emt 0:07:19]} 47. Qe1 {[%emt 0:00:00]} Qf6 {[%emt 0:01:07]} 48. Nc3 {[%emt 0:00:00]} Kh7 {[%emt 0:00:01]} 49. Ne4 {[%emt 0:00:00]} Qe7 {[%emt 0:01:15]} 50. Ng5+ {[%emt 0:00:00]} Kg8 {[%emt 0:00:19]} 51. Qb1 {[%emt 0:01:11]} g6 {[%emt 0:00:11]} 52. Qe1 {[%emt 0:00:25]} Kg7 {[%emt 0:02:06]} 53. Kg1 {[%emt 0:02:31]} Qd6 {[%emt 0:00:48]} 54. Kh2 {[%emt 0:00:50]} f6 {[%emt 0:01:25]} 55. Ne4 {[%emt 0:00:59]} Qd3 {[%emt 0:00:27]} 56. Qc3 {[%emt 0:01:46]} Qxc3 {[%emt 0:02:29]} 57. Nxc3 {[%emt 0:00:03]} f5 {[%emt 0:01:43]} 58. Ne2 {[%emt 0:03:00]} Kf6 {[%emt 0:00:21]} 59. Kg1 {[%emt 0:00:11]} Ke6 {[%emt 0:00:19]} 60. Nc3 {[%emt 0:00:22]} e4 {[%emt 0:00:25]} 61. Kf2 {[%emt 0:00:33]} Ke5 {[%emt 0:00:09]} 62. fxe4 {[%emt 0:01:54]} fxe4 {[%emt 0:00:17]} 63. g4 {[%emt 0:00:29]} fxg3+ {[%emt 0:02:18]} 64. Kxg3 {[%emt 0:00:08]} e3 {[%emt 0:01:00]} 0-1

[Event "FIDE WSTC Open 65 2025"]
[Site "Prague"]
[Date "2025.02.21"]
[Round "5.48"]
[White "Vavruska, Antonin"]
[Black "Okrajek, Alexander"]
[Result "1/2-1/2"]
[Annotator "ChessBase"]
[ECO "A05"]
[WhiteElo "1926"]
[BlackElo "2200"]
[PlyCount "61"]
[EventDate "2025.02.17"]
[EventType "team-tourn"]
[EventCountry "CZE"]
[SourceTitle "playchess.com"]
[Source "ChessBase"]
[SourceQuality "1"]
[TimeControl "40/5400+30:1800+30"]

1. e4 {[%emt 0:00:02]} c6 {[%emt 0:00:26]} 2. d3 {[%emt 0:01:06]} g6 {[%emt 0:02:56]} 3. Nf3 {[%emt 0:02:24]} Bg7 {[%emt 0:00:16]} 4. g3 {[%emt 0:02:09]} d6 {[%emt 0:02:01]} 5. Bg2 {[%emt 0:00:25]} Nf6 {[%emt 0:00:24]} 6. O-O {[%emt 0:00:10]} O-O {[%emt 0:00:21]} 7. c3 {[%emt 0:00:35]} Bg4 {[%emt 0:02:32]} 8. Bg5 {[%emt 0:04:00]} h6 {[%emt 0:03:27]} 9. Be3 {[%emt 0:01:29]} Qd7 {[%emt 0:02:53]} 10. Nbd2 {[%emt 0:31:42]} c5 {[%emt 0:02:58]} 11. a4 {[%emt 0:00:27]} Nc6 {[%emt 0:00:15]} 12. Qc2 {[%emt 0:03:40]} Rac8 {[%emt 0:01:34]} 13. Nc4 {[%emt 0:05:16]} Bh3 {[%emt 0:04:59]} 14. Qe2 {[%emt 0:07:42]} Kh7 {[%emt 0:05:02]} 15. Rfe1 {[%emt 0:02:32]} Bxg2 {[%emt 0:01:59]} 16. Kxg2 Ng4 {[%emt 0:01:53]} 17. h3 {[%emt 0:00:43]} Nxe3+ {[%emt 0:00:29]} 18. Nxe3 {[%emt 0:00:03]} e6 {[%emt 0:03:13]} 19. Nf1 {[%emt 0:10:12]} a6 {[%emt 0:01:11]} 20. g4 {[%emt 0:02:00]} b5 {[%emt 0:01:42]} 21. axb5 {[%emt 0:00:10]} axb5 {[%emt 0:00:09]} 22. Ng3 {[%emt 0:01:27]} Qb7 {[%emt 0:04:40]} 23. Red1 {[%emt 0:05:11]} Ra8 {[%emt 0:02:13]} 24. Rxa8 {[%emt 0:01:52]} Rxa8 {[%emt 0:00:13]} 25. d4 {[%emt 0:00:13]} cxd4 {[%emt 0:02:28]} 26. cxd4 {[%emt 0:01:13]} Ra2 {[%emt 0:07:05]} 27. Rd2 {[%emt 0:00:11]} b4 {[%emt 0:02:59]} 28. h4 {[%emt 0:03:23]} b3 {[%emt 0:03:20]} 29. h5 {[%emt 0:00:35]} g5 {[%emt 0:03:30]} 30. Qd3 {[%emt 0:00:45]} Kg8 {[%emt 0:01:14]} 31. d5 {[%emt 0:01:55]} 1/2-1/2